[Event "Teplice Open 2022"]
[Site "Teplice"]
[Date "2022.06.23"]
[Round "6.12"]
[White "Stocek, Jiri"]
[Black "Sokolovsky, Yahli"]
[Result "1/2-1/2"]
[ECO "D23"]
[WhiteElo "2533"]
[BlackElo "2369"]
[Annotator "TA"]
[PlyCount "60"]
[EventDate "2022.06.18"]
[EventType "swiss"]
[EventCountry "CZE"]
[SourceTitle "playchess.com"]
[Source "ChessBase"]
[SourceQuality "1"]
[TimeControl "40/5400+30:1800+30"]

{[%evp 13,60,8,14,0,6,1,14,8,21,18,31,15,21,18,49,22,22,20,20,0,0,0,17,10,29,23,16,16,13,14,19,14,102,115,105,0,88,69,65,6,58,50,33,18,5,2,5,-15,-25]} 1. d4 {[%emt 0:00:38] RR} d5 {[%emt 0:02:30]} 2. Nf3 {[%emt 0:01:04]} Nf6 {[%emt 0:00:18]} 3. c4 {[%emt 0:01:47]} c6 {[%emt 0:00:16]} 4. Qb3 {[%emt 0:01:24]} dxc4 {[%emt 0:00:36]} 5. Qxc4 {[%emt 0:00:07]} Bf5 {[%emt 0:00:22]} 6. g3 {[%emt 0:01:14]} e6 {[%emt 0:00:32]} 7. Bg2 {[%emt 0:00:05]} Be7 {[%emt 0:00:16]} 8. O-O {[%emt 0:00:18] D23: Queen's Gambit Accepted: 3 Nf3 Nf6 sidelines.} O-O {[%emt 0:00:37]} 9. Rd1 {[%emt 0:02:27]} Nbd7 {[%emt 0:02:55]} 10. e3 {[%emt 0:01:13]} Qb6 {[%emt 0:05:49]} 11. Qe2 {[%emt 0:04:37]} Ne4 {[%emt 0:03:51]} 12. Nfd2 {[%emt 0:25:48]} Nxd2 {[%emt 0:07:04]} (12... Nef6 {keeps more tension.} 13. e4 Bg4 14. f3 Qxd4+ 15. Kh1 Ne5) 13. Nxd2 {[%emt 0:03:05] [#]} Bg6 $146 {[%emt 0:09:51]} ({Predecessor:} 13... c5 14. dxc5 Nxc5 15. e4 Bg6 16. Nc4 Qa6 17. Bf4 Rfd8 18. b3 Bf6 19. e5 Be7 {½-½ (49) Matlakov,M (2632)-Andriasian,Z (2619) Magnitogorsk 2011 CBM 146 [RR]}) 14. e4 {[%emt 0:08:20]} Rad8 {[%emt 0:03:50]} (14... Qxd4 $2 15. Nb3 Bh5 16. Qxh5 $18) 15. Nc4 {[%emt 0:07:25]} Qa6 {[%emt 0:01:27][%cal Oe6e5]} 16. Bf4 {[%emt 0:01:22] Inhibits e5.} Nb6 {[%emt 0:03:03]} 17. b3 {[%emt 0:00:44]} c5 {[%emt 0:17:32]} 18. h4 {[%emt 0:02:37][%cal Bh2h4,Bh4h5][%mdl 32] [#] And now h5 would win.} h6 {[%emt 0:13:25]} ({Much less strong is} 18... Rxd4 19. h5 $16) 19. h5 {[%emt 0:03:17]} Bh7 {[%emt 0:00:03]} 20. d5 {[%emt 0:04:00]} exd5 {[%emt 0:00:08]} 21. exd5 {[%emt 0:00:05]} Bf6 {[%emt 0:04:08]} 22. Rac1 {[%emt 0:00:51]} Rfe8 {[%emt 0:00:52]} (22... Bd4 $1 $11) 23. Qd2 $16 {[%emt 0:08:02] White is more active.} Bd4 {[%emt 0:05:39]} 24. Ne3 {[%emt 0:00:50]} ({Only move:} 24. Bc7 $16) 24... Be4 {[%emt 0:01:13] [#]} (24... Nd7 $11 {remains equal.}) 25. Bf1 $1 $36 {[%emt 0:03:28][%mdl 2048] Black is under pressure.} Qa3 {[%emt 0:00:13]} 26. d6 {[%emt 0:00:07]} (26. Bb5 $14) 26... Be5 {[%emt 0:09:00]} ({Better is} 26... Bb2 $11) 27. Bxe5 $14 {[%emt 0:06:44]} Rxe5 {[%emt 0:00:01]} 28. Qe2 {[%emt 0:07:16] Against Bf3} Bc6 {[%emt 0:02:32] The position is equal.} 29. Qg4 {[%emt 0:01:38] aiming for Nf5.} Rg5 {[%emt 0:02:38]} 30. Qf4 {[%emt 0:00:41]} Qxa2 {[%emt 0:02:00] Weighted Error Value: White=0.12 (very precise) /Black=0.20 (precise)} 1/2-1/2

[Event "Teplice Open 2022"]
[Site "Teplice"]
[Date "2022.06.23"]
[Round "6.13"]
[White "Postny, Evgeny"]
[Black "Stijve, Theo"]
[Result "1-0"]
[ECO "D60"]
[WhiteElo "2563"]
[BlackElo "2341"]
[Annotator "TA"]
[PlyCount "137"]
[EventDate "2022.06.18"]
[EventType "swiss"]
[EventCountry "CZE"]
[SourceTitle "playchess.com"]
[Source "ChessBase"]
[SourceQuality "1"]
[TimeControl "40/5400+30:1800+30"]

{[%evp 19,137,27,28,22,34,26,24,26,35,31,30,18,35,27,44,16,41,32,47,0,0,14,36,34,42,0,31,22,63,49,47,29,47,47,47,51,45,40,42,41,85,7,7,7,7,0,0,0,0,0,0,0,0,0,0,0,0,0,0,0,0,0,0,0,0,0,0,7,70,70,70,70,70,70,70,70,78,70,70,70,70,70,70,70,70,70,70,70,78,78,78,78,78,70,70,0,70,50,50,42,50,50,50,50,50,50,52,52,29975,29978,29977,29979,29979,29980,29987,29985,29985,29986,29986,29987]} 1. d4 {[%emt 0:00:04]} d5 {[%emt 0:00:07]} 2. c4 {[%emt 0:00:08]} e6 {[%emt 0:00:05]} 3. Nc3 {[%emt 0:00:14]} Nf6 {[%emt 0:00:08]} 4. Bg5 {[%emt 0:00:16]} Be7 {[%emt 0:00:08]} 5. e3 {[%emt 0:00:10]} O-O {[%emt 0:00:36]} 6. Nf3 {[%emt 0:00:53]} Nbd7 {[%emt 0:00:11]} 7. cxd5 {[%emt 0:00:49]} Nxd5 {[%emt 0:00:42]} 8. Bxe7 {[%emt 0:00:09]} Qxe7 {[%emt 0:01:00]} 9. Bd3 {[%emt 0:05:51]} c5 {[%emt 0:10:52]} 10. Nxd5 {[%emt 0:01:21]} exd5 {[%emt 0:00:12]} 11. dxc5 {[%emt 0:09:52] D60: Queen's Gambit Declined: Classical: Unusual White 7th moves.} Nxc5 {[%emt 0:01:29]} 12. Be2 $5 {[%emt 0:00:30][%mdl 4] [#] Exploring less charted territory.} Bf5 $146 {[%emt 0:16:23]} ({Predecessor:} 12... Be6 13. O-O Rac8 14. Rc1 Rc7 15. Nd4 a6 16. Bf3 Rfc8 17. a3 h6 18. Rc3 b5 {1-0 (49) Riek,J-Carnemolla,G (1930) ICCF email 2017}) 13. O-O {[%emt 0:05:31] White has an edge.} Be4 {[%emt 0:07:08]} 14. Qd2 {[%emt 0:01:05]} Ne6 {[%emt 0:06:06]} 15. Rfd1 {[%emt 0:13:59]} Rfd8 {[%emt 0:04:46]} 16. Nd4 {[%emt 0:05:10]} Qg5 {[%emt 0:03:09][%csl Ge4][%cal Rg5g2] [#]} 17. Bf1 {[%emt 0:00:46]} Rd6 {[%emt 0:07:50]} 18. Rac1 {[%emt 0:08:11]} h5 {[%emt 0:03:11]} 19. g3 {[%emt 0:19:40]} h4 {[%emt 0:06:55]} 20. Bg2 {[%emt 0:00:13]} hxg3 {[%emt 0:10:37]} 21. hxg3 {[%emt 0:00:04]} Re8 {[%emt 0:00:47]} 22. Qe2 {[%emt 0:10:06]} Qg6 {[%emt 0:06:11]} 23. Qb5 {[%emt 0:08:04][%csl LRb7,LRe8]} Re7 {[%emt 0:01:52]} 24. Nxe6 {[%emt 0:01:01]} Qxe6 {[%emt 0:03:30]} 25. Rd4 {[%emt 0:03:51]} Rb6 {[%emt 0:03:08]} 26. Qe2 {[%emt 0:00:25]} Rc6 {[%emt 0:00:30]} 27. Rxc6 {[%emt 0:01:06]} Qxc6 {[%emt 0:00:39]} 28. Qd1 {[%emt 0:01:39]} Bxg2 {[%emt 0:01:38]} 29. Kxg2 $14 {[%emt 0:00:05][%mdl 4096] Endgame KQR-KQR} Re4 {[%emt 0:00:26]} 30. Qd3 {[%emt 0:01:22]} (30. Rxd5 $16 {Rd6 is the strong threat.} Re5 31. e4 Rxe4 32. Rd6) 30... Rxd4 $11 {[%emt 0:01:01]} 31. Qxd4 {[%emt 0:00:06] KQ-KQ} a6 {[%emt 0:00:35]} 32. a4 {[%emt 0:01:11]} a5 {[%emt 0:01:03]} 33. g4 {[%emt 0:01:37]} b5 {[%emt 0:01:21]} 34. b3 {[%emt 0:00:33]} bxa4 {[%emt 0:01:15]} 35. bxa4 {[%emt 0:00:04]} g6 {[%emt 0:00:51]} 36. Kg3 {[%emt 0:00:00]} Qc7+ {[%emt 0:00:06]} 37. Qf4 {[%emt 0:00:44]} Qc6 {[%emt 0:01:03]} 38. Qb8+ {[%emt 0:00:33]} Kg7 {[%emt 0:00:13]} 39. Qb2+ {[%emt 0:00:18]} Kg8 {[%emt 0:00:18]} 40. Qb5 {[%emt 0:00:33]} Qd6+ {[%emt 0:00:40]} 41. Kf3 {[%emt 0:31:08]} Qf6+ {[%emt 0:03:50]} 42. Kg2 {[%emt 0:00:00]} d4 {[%emt 0:05:18]} 43. Qxa5 {[%emt 0:00:00]} d3 {[%emt 0:01:49]} (43... Qc6+ $11 44. Kg3 dxe3) 44. Qd5 $14 {[%emt 0:00:00]} Qc3 {[%emt 0:07:34]} 45. a5 {[%emt 0:00:00][%cal Ba4a5,Ba5a6][%mdl 32]} d2 {[%emt 0:01:56]} 46. a6 $1 {[%emt 0:00:00] a7 would kill now.} Qb4 {[%emt 0:03:42]} 47. Kg3 {[%emt 0:00:00] White wants to mate with a7.} Qb8+ {[%emt 0:01:20]} 48. Kh3 {[%emt 0:00:00]} Qa7 {[%emt 0:01:37]} 49. Qxd2 {[%emt 0:00:00] Black must now prevent Qd8+. White is more active.} Qxa6 {[%emt 0:00:06]} 50. Qd8+ {[%emt 0:00:00]} Kg7 {[%emt 0:00:16]} 51. Qd4+ {[%emt 0:00:00]} Kg8 {[%emt 0:00:20]} 52. Kg2 {[%emt 0:00:00]} Qe2 {[%emt 0:00:46]} 53. Qe4 {[%emt 0:00:00]} Qe1 {[%emt 0:00:37]} 54. Qe8+ {[%emt 0:00:00]} Kg7 {[%emt 0:00:11]} 55. Qe5+ {[%emt 0:00:00]} Kg8 {[%emt 0:00:09]} 56. Qb2 {[%emt 0:00:00]} Qd1 {[%emt 0:00:30]} 57. Qd4 {[%emt 0:00:00]} ({White should try} 57. Qb8+ $14 Kg7 58. Qe5+ Kf8 59. Qd4) 57... Qe1 {[%emt 0:00:41]} (57... Qe2 $11) 58. e4 {[%emt 0:00:00][%cal Be3e4,Be4e5,Be5e6][%mdl 32]} Qe2 {[%emt 0:00:51]} 59. Kg3 {[%emt 0:00:00]} Qe1 {[%emt 0:00:59]} 60. e5 {[%emt 0:00:00]} Kh7 {[%emt 0:01:32]} 61. Kf4 {[%emt 0:00:00]} Kh6 {[%emt 0:01:18]} 62. Qe3 {[%emt 0:00:00] Prevents Qc1.} Qh1 {[%emt 0:05:50]} 63. e6 {[%emt 0:04:30]} g5+ $2 {[%emt 0:00:41][%mdl 8192] [#] A mistake that costs the game.} (63... fxe6 $14 64. Kg3+ (64. Qxe6 Qh2+ 65. Kf3 Qh1+ 66. Kf4 Qh2+ 67. Kf3 Qh1+ 68. Ke2 Kg5 $11) 64... Kh7) 64. Kf5 $1 {[%emt 0:01:59] White mates.} Qb1+ {[%emt 0:00:35]} 65. Kf6 {[%emt 0:00:21][%cal Re3h3]} Qg6+ {[%emt 0:01:16]} 66. Ke7 {[%emt 0:00:05]} f5 {[%emt 0:00:32]} 67. Qh3+ {[%emt 0:00:33]} Kg7 {[%emt 0:00:01]} 68. Qc3+ {[%emt 0:00:06]} Kg8 {[%emt 0:00:37]} 69. Qf6 {[%emt 0:00:07] Weighted Error Value: White=0.09 (flawless) /Black=0.10 (very precise)} 1-0

[Event "Teplice Open 2022"]
[Site "Teplice"]
[Date "2022.06.23"]
[Round "6.14"]
[White "Straka, Jozef"]
[Black "Kozak, Adam"]
[Result "0-1"]
[ECO "D44"]
[WhiteElo "2341"]
[BlackElo "2532"]
[Annotator "TA"]
[PlyCount "112"]
[EventDate "2022.06.18"]
[EventType "swiss"]
[EventCountry "CZE"]
[SourceTitle "playchess.com"]
[Source "ChessBase"]
[SourceQuality "1"]
[TimeControl "40/5400+30:1800+30"]

{[%evp 34,112,28,23,19,21,29,11,20,25,69,36,29,15,0,0,1,10,0,0,10,-58,50,-13,-14,0,0,0,-4,-101,-7,-72,0,-272,0,-69,0,0,0,-77,-45,-57,-77,-430,-437,-450,0,-233,-238,-270,-194,-456,-440,-522,-501,-616,-530,-1354,-1334,-1356,-1234,-1574,-1507,-1531,-1538,-1513,-1485,-1390,-1312,-1433,0,0,0,0,0,-29983,-29984,-5285,-1290,-29988,-29989]} 1. d4 {[%emt 0:00:03]} d5 {[%emt 0:03:26]} 2. c4 {[%emt 0:00:07]} c6 {[%emt 0:00:06]} 3. Nf3 {[%emt 0:00:08]} Nf6 {[%emt 0:00:06]} 4. Nc3 {[%emt 0:00:10]} e6 {[%emt 0:00:37]} 5. Bg5 {[%emt 0:00:16]} dxc4 {[%emt 0:01:56]} 6. e4 {[%emt 0:01:19]} b5 {[%emt 0:00:13]} 7. e5 {[%emt 0:02:16]} h6 {[%emt 0:00:17]} 8. Bh4 {[%emt 0:03:07]} g5 {[%emt 0:00:10]} 9. Nxg5 {[%emt 0:01:50]} hxg5 {[%emt 0:00:09]} 10. Bxg5 {[%emt 0:00:09]} Nbd7 {[%emt 0:00:14]} 11. g3 {[%emt 0:09:41]} Bb7 {[%emt 0:09:38]} 12. Bg2 {[%emt 0:02:22]} Qb6 {[%emt 0:01:57]} 13. exf6 {[%emt 0:01:46]} O-O-O {[%emt 0:01:57]} 14. O-O {[%emt 0:03:21]} c5 {[%emt 0:00:05]} 15. d5 {[%emt 0:11:41]} b4 {[%emt 0:00:42]} 16. Na4 {[%emt 0:09:08]} Qa6 {[%emt 0:04:08]} 17. a3 {[%emt 0:05:37]} Bxd5 {[%emt 0:08:37]} 18. Bxd5 {[%emt 0:08:52]} Ne5 $1 {[%emt 0:00:16] D44: Semi-Slav: Botvinnik System.} 19. Qe2 {[%emt 0:06:19]} Rxd5 {[%emt 0:00:33]} 20. axb4 {[%emt 0:04:04]} cxb4 {[%emt 0:00:20] [#] The position is equal.} 21. Nc3 $1 {[%emt 0:05:31]} Qc6 {[%emt 0:00:08]} (21... Qd6 22. Nxd5) 22. Nxd5 {[%emt 0:00:21]} (22. Bf4 $5 {[%cal Rc3d5]} bxc3 23. Bxe5 $16) 22... Qxd5 {[%emt 0:00:05]} 23. f3 $1 {[%emt 0:00:52]} Bc5+ {[%emt 0:01:44]} 24. Be3 {[%emt 0:02:04] Black should prevent Bxc5.} Nd3 {[%emt 0:03:43]} 25. Bxc5 {[%emt 0:04:10]} Qxc5+ {[%emt 0:00:16]} 26. Kh1 {[%emt 0:03:02][%cal Ob2b3]} Rd8 {[%emt 0:02:17]} 27. Qc2 {[%emt 0:11:39] [#]} ({Better is} 27. Ra6 $11) 27... Kb8 $146 {[%emt 0:24:27]} (27... a5 $1 $15) ({Predecessor:} 27... Kb7 28. Kg2 a5 29. Rfd1 Qe3 30. Rxd3 cxd3 31. Qf2 Qe5 32. f4 Qb5 33. Qf3+ Kb8 {½-½ (40) Butenandt,S (1986)-Brunner,S (1850) Willingen 2020}) 28. Rad1 {[%emt 0:01:44]} (28. Ra6 $1 $14) 28... Qd4 {[%emt 0:06:30][%csl LRb2,LRf6]} 29. Rd2 {[%emt 0:00:40]} b3 {[%emt 0:03:51]} 30. Qd1 {[%emt 0:00:18]} Qxf6 {[%emt 0:02:47]} 31. Qe2 {[%emt 0:00:11]} (31. Qa1 $1 $11) 31... Qd4 {[%emt 0:04:11]} (31... Qg5 $17) 32. Qe4 {[%emt 0:01:36]} (32. h4 $1 $11) 32... Qc5 {[%emt 0:09:25]} ({Black should try} 32... Kc7 $17) 33. Ra1 $2 {[%emt 0:02:01][%mdl 8192]} (33. h4 $11 {and White stays safe.}) 33... Rd5 $2 {[%emt 0:06:38]} (33... Nf2+ $1 $19 34. Rxf2 Qxf2 35. Qf4+ Ka8 36. Qxc4 (36. Qe4+ Rd5 $17) 36... Qxf3+ 37. Kg1 Qb7) 34. Qh7 $15 {[%emt 0:00:31]} Rd7 $1 $36 {[%emt 0:02:01][%mdl 3072] Black has compensation. Black has the initiative.} 35. Qh8+ {[%emt 0:00:19]} Kb7 {[%emt 0:00:54][%cal Bb8b7,Bb7b6,Bb6b5][%mdl 32] ...Nf2+ is the strong threat.} 36. Qc3 {[%emt 0:00:13]} (36. Qe8 $11 Qc6 37. h4) 36... Qd5 $17 {[%emt 0:01:10]} 37. Rf1 {[%emt 0:00:02]} Kb6 {[%emt 0:01:29]} 38. Re2 $2 {[%emt 0:00:28][%mdl 8192]} (38. Qh8 $17 {is tougher.}) 38... Qd4 $1 $19 {[%emt 0:00:50]} 39. Qd2 {[%emt 0:01:04]} Qc5 $2 {[%emt 0:00:46]} (39... a5 $19 40. Kg2 (40. Ra1 $2 Nf2+ 41. Rxf2 Qxd2 $19) 40... Qxb2 $1 41. Qxb2 Nxb2 42. Rxb2 a4) 40. Re4 $2 {[%emt 0:00:50]} (40. Qc3 $1 $11 {and White is okay.}) 40... a5 $1 {[%emt 0:01:08]} 41. Kg2 {[%emt 0:05:46]} Kb5 {[%emt 0:03:14]} 42. Rc1 $2 {[%emt 0:08:29]} (42. Ra1 Qb4 43. Qe3 a4 $17) (42. Qe2) 42... Rd4 {[%emt 0:02:05] White must now prevent ...Rxe4.} 43. Ra1 {[%emt 0:00:45]} a4 {[%emt 0:01:00] Hoping for ...Rxe4. Active counter play!} (43... c3 44. bxc3 Rxe4 45. c4+ (45. fxe4 $2 Qc4 $19) (45. Qxd3+ Rc4 $17) 45... Kxc4 46. Ra4+ Nb4 47. Qc1+ (47. fxe4 $2 Qd4 $19) 47... Kd4 48. Qd2+ Ke5 49. Qg5+ (49. fxe4 $2 Qc2 $19) 49... f5 50. fxe4 Kxe4 51. Qf4+ Kd3 52. Qf3+ Kc4 53. Qf1+ Kc3 54. Qe1+ (54. Qc1+ $2 Nc2 $19) 54... Kb2 55. Kh3 $19 (55. Qa1+ $2 Kc2 $19)) 44. Qe3 {[%emt 0:03:19]} e5 {[%emt 0:02:05] aiming for ...f5.} 45. h4 {[%emt 0:03:56]} f5 {[%emt 0:04:36]} ({Inferior is} 45... Rxe4 46. Qxe4 Nxb2 47. h5 $17 (47. Qb7+ $2 Qb6 $19)) 46. Rxd4 {[%emt 0:00:05]} Qxd4 {[%emt 0:00:05]} (46... Nxb2 $2 47. h5 exd4 48. Qe8+ Kb4 49. h6 $18) 47. Qe2 {[%emt 0:02:22]} Qxb2 {[%emt 0:05:04]} 48. Qxb2 {[%emt 0:00:11]} Nxb2 {[%emt 0:00:05][%mdl 4096] Endgame KR-KN} 49. h5 {[%emt 0:00:08]} Nd3 {[%emt 0:00:26] Strongly threatening ...b2.} 50. h6 {[%emt 0:00:35]} b2 {[%emt 0:00:07]} 51. Rd1 {[%emt 0:06:56] [#]} a3 $2 {[%emt 0:05:41]} (51... c3 $1 $19 {And now ...c2 would win.} 52. h7 c2 53. Rxd3 c1=Q) 52. h7 $11 {[%emt 0:00:16]} a2 {[%emt 0:00:31] Dancing on a razor blade.} (52... Kb4 $5 53. h8=Q a2 $11) 53. h8=Q {[%emt 0:00:13]} a1=Q {[%emt 0:00:25]} 54. Qh1 {[%emt 0:03:12][%mdl 8192]} (54. Qb8+ $11 Kc5 55. Rxd3 cxd3 56. Qxe5+ Kc4 57. Qc7+ Kd5 58. Qd8+ Kc5 59. Qc7+ Kd4 60. Qb6+ Kc3 61. Qc5+ Kb3 62. Qb5+ Ka3 63. Qxd3+ Ka2 64. Qd5+ Kb1 65. Qd1+ Ka2 66. Qd5+ (66. Qa4+ Kb1 $11) 66... Kb1 67. Qd1+ Ka2 68. Qd5+ (68. Qa4+ Kb1 $11)) 54... Qa2 {[%emt 0:00:57]} 55. Rb1 {[%emt 0:00:43]} Qb3 {[%emt 0:00:12]} (55... c3 $142 56. Qd1 {[#]} Qxb1 $3 {[%mdl 512]} 57. Qxb1 c2) 56. g4 {[%emt 0:01:08]} Qc2+ {[%emt 0:01:01] Weighted Error Value: White=1.18/Black=0.62} 0-1

[Event "Teplice Open 2022"]
[Site "Teplice"]
[Date "2022.06.23"]
[Round "6.15"]
[White "Voege, Tobias"]
[Black "Yankelevich, Lev"]
[Result "0-1"]
[ECO "E11"]
[WhiteElo "2286"]
[BlackElo "2473"]
[Annotator "TA"]
[PlyCount "62"]
[EventDate "2022.06.18"]
[EventType "swiss"]
[EventCountry "CZE"]
[SourceTitle "playchess.com"]
[Source "ChessBase"]
[SourceQuality "1"]
[TimeControl "40/5400+30:1800+30"]

{[%evp 13,61,0,-6,-8,2,-8,-22,-24,-30,-101,-108,-99,-38,-50,-61,-52,-54,-104,-99,-98,-98,-106,-72,-145,-151,-225,-192,-335,-312,-360,-411,-413,-420,-406,-295,-297,-287,-280,-282,-419,-444,-420,-387,-1356,-1229,-5281,-2512,-2322,-718,-29999]} 1. d4 {[%emt 0:00:05]} Nf6 {[%emt 0:00:09]} 2. c4 {[%emt 0:00:06]} e6 {[%emt 0:00:07]} 3. Nf3 {[%emt 0:00:06]} Bb4+ {[%emt 0:04:00]} 4. Nbd2 {[%emt 0:00:32]} O-O {[%emt 0:00:07]} 5. g3 {[%emt 0:00:11]} d5 {[%emt 0:03:30]} 6. Bg2 {[%emt 0:02:47]} b6 {[%emt 0:01:25]} 7. a3 {[%emt 0:03:29]} Be7 {[%emt 0:00:05]} 8. b4 {[%emt 0:10:35] [#] E11: Bogo-Indian.} a5 $146 {[%emt 0:00:39]} ({Predecessor:} 8... Bb7 9. c5 a5 10. Bb2 axb4 11. axb4 Rxa1 12. Bxa1 Ba6 13. O-O Bb5 14. Nb1 Qc8 15. Nc3 Qa6 {½-½ (40) Nakamura,H (2707)-Sharavdorj,D (2529) Las Vegas 2006}) 9. Rb1 {[%emt 0:01:11]} axb4 {[%emt 0:00:43]} 10. axb4 {[%emt 0:00:08] The position is equal.} dxc4 {[%emt 0:11:43]} 11. Ne5 {[%emt 0:08:17]} (11. Nxc4 $11 Bb7 12. O-O) 11... Nd5 $1 $17 {[%emt 0:11:15] aiming for ...Bb7.} 12. Ndxc4 {[%emt 0:01:58]} b5 {[%emt 0:17:00]} ({Better is} 12... Bb7 $1 $17 {Strongly threatening ...Nc3.} 13. Qb3 Bxb4+ 14. Bd2 Bxd2+ 15. Nxd2 Nd7) 13. Ne3 {[%emt 0:02:53]} Bb7 $1 {[%emt 0:01:56][%cal Bc8b7,Bb7d5,Bd5a2,Ba2c4][%mdl 32] And now ...Nxe3 would win.} 14. Nxd5 {[%emt 0:04:03]} Bxd5 {[%emt 0:00:06]} 15. e4 {[%emt 0:13:22] [#] Black continues to play with concentration.} (15. Bxd5 $15 Qxd5 16. O-O) 15... Ba2 $1 {[%emt 0:00:24]} 16. Rb2 {[%emt 0:00:55] [#]} f6 $1 {[%emt 0:00:04]} 17. Nf3 {[%emt 0:03:27]} Nc6 $36 {[%emt 0:07:26][%mdl 2048] White must now prevent ...Bc4. Black is on the roll.} 18. O-O {[%emt 0:08:23]} (18. Bf1 $142) 18... Bc4 {[%emt 0:01:31]} ({Much weaker is} 18... Bxb4 $6 19. Rxa2 (19. Bd2 Be7 $17) 19... Rxa2 20. Qb3 $11) 19. Re1 {[%emt 0:04:07]} (19. d5 $17 {might work better.} exd5 20. exd5 Nxb4 21. Nd4) 19... Bxb4 $19 {[%emt 0:06:47]} ({Inferior is} 19... Nxb4 20. Bf1 $17) 20. Re3 {[%emt 0:00:55]} (20. Bd2 {is the only way for White.} Ba3 21. Rb1) 20... Ra1 {[%emt 0:00:30][%cal Oc6d4]} 21. d5 {[%emt 0:08:41]} exd5 {[%emt 0:04:22]} 22. exd5 {[%emt 0:00:20]} Qxd5 {[%emt 0:01:23]} 23. Nd2 {[%emt 0:02:35]} Qd6 {[%emt 0:05:00]} 24. Bxc6 {[%emt 0:02:06][%cal Ob2b4] Rxb4! is the strong threat.} Bxd2 {[%emt 0:00:10]} ({Weaker is} 24... Qxc6 25. Rxb4 Rd8 26. Rb2 $16) 25. Rxd2 {[%emt 0:01:17]} Qxc6 {[%emt 0:00:04]} 26. Rd8 {[%emt 0:02:47]} (26. Re7 $142) 26... Rxd8 {[%emt 0:05:00]} 27. Qxd8+ {[%emt 0:00:06]} Kf7 {[%emt 0:00:01]} 28. Re7+ $2 {[%emt 0:05:21]} (28. Qe7+ Kg6 29. Re1) 28... Kg6 {[%emt 0:00:04]} 29. Re1 {[%emt 0:00:28]} Bd5 {[%emt 0:02:45]} 30. Qc8 {[%emt 0:00:54]} Be6 {[%emt 0:02:43]} (30... Rxc1 $142 31. Qg4+ Kf7 32. Qh5+ Kg8) 31. Bh6 {[%emt 0:01:09]} Rxe1# {[%emt 0:00:09] Weighted Error Value: White=1.11/Black=0.29 (precise)} 0-1

[Event "Teplice Open 2022"]
[Site "Teplice"]
[Date "2022.06.23"]
[Round "6.16"]
[White "Raja Harshit"]
[Black "Levin, Guy"]
[Result "1/2-1/2"]
[ECO "B31"]
[WhiteElo "2479"]
[BlackElo "2351"]
[Annotator "TA"]
[PlyCount "61"]
[EventDate "2022.06.18"]
[EventType "swiss"]
[EventCountry "CZE"]
[SourceTitle "playchess.com"]
[Source "ChessBase"]
[SourceQuality "1"]
[TimeControl "40/5400+30:1800+30"]

{[%evp 11,61,15,15,15,15,15,15,15,14,17,19,23,64,-60,-62,-148,-127,-131,-136,-154,-154,-201,-203,-294,-195,-181,-185,-216,-170,-172,-164,-152,-171,-148,-158,-160,-163,-159,-163,-160,-142,-325,-316,-286,-112,-106,-112,-141,-32,-34,0,0]} 1. e4 {[%emt 0:06:08]} c5 {[%emt 0:00:10]} 2. Nf3 {[%emt 0:00:07]} Nc6 {[%emt 0:00:02]} 3. Bb5 {[%emt 0:00:12]} g6 {[%emt 0:00:06]} 4. O-O {[%emt 0:00:17]} Bg7 {[%emt 0:00:02]} 5. Re1 {[%emt 0:00:21]} e5 {[%emt 0:00:12]} 6. Bxc6 {[%emt 0:02:23]} dxc6 {[%emt 0:00:11]} 7. a4 {[%emt 0:01:02] B31: Sicilian: 2...Nc6 3 Bb5 g6.} a5 {[%emt 0:10:15]} 8. Na3 {[%emt 0:00:26]} Qc7 {[%emt 0:00:39]} 9. d3 {[%emt 0:00:36]} Ne7 {[%emt 0:02:31]} 10. Nc4 {[%emt 0:01:46]} Be6 {[%emt 0:00:14]} ({Don't take} 10... b5 11. Ncd2 $16) 11. Ng5 {[%emt 0:02:41] Pair of Knights!} Bd7 {[%emt 0:10:23] [#]} 12. f4 $146 {[%emt 0:08:29] White is more active.} (12. Be3 $14) ({Predecessor:} 12. Be3 b6 13. c3 h6 14. Nf3 Be6 15. Na3 Rd8 16. Qc2 O-O 17. Nc4 {1-0 (33) Iounoussov,M (2065)-Ayad,A (1730) Goch 2003}) 12... h6 $15 {[%emt 0:14:24]} 13. Nh3 {[%emt 0:06:58]} (13. Nf3 $15) 13... Bxh3 $17 {[%emt 0:02:59]} 14. gxh3 {[%emt 0:00:02]} exf4 {[%emt 0:00:39]} 15. Qg4 {[%emt 0:06:48]} g5 {[%emt 0:06:39]} 16. h4 {[%emt 0:07:06]} (16. Bd2 $17 {was called for.}) 16... b5 $19 {[%emt 0:15:24]} 17. Nd2 {[%emt 0:03:04]} (17. Na3 $142) 17... Qd7 {[%emt 0:06:33]} 18. Qxd7+ {[%emt 0:03:15]} Kxd7 {[%emt 0:02:17]} 19. Nb3 {[%emt 0:01:45]} c4 {[%emt 0:00:41]} 20. dxc4 {[%emt 0:00:45]} bxc4 {[%emt 0:00:04]} 21. Nd2 {[%emt 0:00:04]} c3 {[%emt 0:05:11]} 22. bxc3 {[%emt 0:00:04]} Bxc3 {[%emt 0:00:05]} 23. Ra3 {[%emt 0:00:04]} Bb4 {[%emt 0:00:11]} 24. Rd3+ {[%emt 0:02:28] [#]} Ke6 $1 {[%emt 0:01:58] White must now prevent ...Ng6.} 25. Rd1 {[%emt 0:05:26]} Rhd8 {[%emt 0:02:45]} ({Not} 25... gxh4 26. Nf3 $15) 26. Nb3 $2 {[%emt 0:00:31]} (26. Nf3 $17 {is a better defense.} Rxd3 27. cxd3) 26... Rxd3 {[%emt 0:00:15]} 27. Rxd3 {[%emt 0:00:04]} f5 $2 {[%emt 0:03:59]} (27... c5 $19 {Hoping for ...c4.} 28. Bb2 c4 29. Nd4+ Ke5 30. Nb5+ Kxe4) 28. Nd4+ $17 {[%emt 0:03:24]} Kf6 {[%emt 0:01:32]} 29. e5+ {[%emt 0:05:05][%mdl 64] [#] Decoy} Kxe5 {[%emt 0:00:16]} (29... Kf7 $17 {Strongly threatening ...c5.} 30. Bb2 Bc5) 30. Nf3+ $15 {[%emt 0:00:22]} Kf6 {[%emt 0:01:57] aiming for ...Bc5+.} 31. hxg5+ {[%emt 0:00:30] Weighted Error Value: White=0.32/Black=0.24 (precise)} 1/2-1/2